bitfinex-derivatives/quotes_SOLF0:USTF0_20250505
["timestamp","ask_amount","ask_price","bid_price","bid_amount"]
[1746488768673,28.44705122,147.01,146.99,6.8041]
[1746488769074,28.44705122,147.01,146.96,0.1]
[1746488769275,35.25055122,147.01,146.98,6.8045]
[1746488776883,11.47055122,147.01,146.98,6.8045]
[1746488781288,11.47055122,147.01,146.99,6.8041]
[1746488785387,6.8038,147.0,146.98,6.8044]
[1746488785593,6.8038,147.0,146.96,0.1]
[1746488786091,11.47045122,147.01,146.96,0.1]
[1746488786290,4.66705122,147.01,146.96,0.1]
[1746488786491,6.8037,147.0,146.97,6.8048]
[1746488786692,6.8037,147.0,146.96,0.1]
[1746488786893,6.8037,147.0,146.97,6.8048]
[1746488790597,11.47135122,146.99,146.96,6.9054]
[1746488791302,4.66705122,146.99,146.97,6.8049]
[1746488792303,11.47125122,146.99,146.97,6.8049]
[1746488793410,11.47125122,146.99,146.96,6.9053]
[1746488794905,11.47125122,146.99,146.97,6.805]
[1746488796309,11.47125122,146.99,146.96,6.9053]
[1746488796910,4.66705122,146.99,146.97,6.8049]
[1746488797209,6.8039,147.0,146.97,6.8049]
[1746488800716,11.47125122,146.99,146.96,6.9054]
[1746488803018,4.66705122,146.99,146.96,0.1]
[1746488803915,6.8049,146.98,146.96,0.1]
[1746488804218,6.8049,146.98,146.96,6.9055]
[1746488806816,6.8049,146.98,146.96,0.1]
[1746488807917,11.47145122,146.99,146.96,6.9053]
[1746488809118,4.66705122,146.99,146.97,6.8048]
[1746488809416,6.8038,147.0,146.97,6.8048]
[1746488811218,35.23055122,147.01,146.98,6.8045]
[1746488811416,30.5635,147.01,146.98,6.8045]
[1746488811621,35.23055122,147.01,146.98,6.8045]
[1746488812217,6.8037,147.0,146.98,6.8045]
[1746488813719,28.42705122,147.01,146.96,0.2]
[1746488814829,35.23035122,147.01,146.96,0.2]
[1746488815412,35.23035122,147.01,146.98,6.8043]
[1746488820023,11.47035122,147.01,146.98,6.8043]
[1746488822621,4.66705122,146.99,146.97,6.805]
[1746488822927,4.66705122,146.99,146.96,0.2]
[1746488823324,11.47145122,146.99,146.96,7.0054]
[1746488825027,11.47145122,146.99,146.97,6.8051]
[1746488825825,11.47145122,146.99,146.96,7.0053]
[1746488826727,11.47145122,146.99,146.97,6.805]
[1746488827122,4.66705122,146.99,146.96,0.2]
[1746488827329,4.66705122,147.01,146.98,6.8046]
[1746488827824,11.47055122,147.01,146.98,6.8046]
[1746488828130,11.47055122,147.01,146.99,6.804]
[1746488828829,4.66705122,147.01,146.99,6.804]
[1746488829032,4.66705122,147.01,146.96,0.2]
[1746488829222,23.76,147.02,146.97,4.66705122]
[1746488829425,30.5628,147.02,146.97,4.66705122]
[1746488829730,30.5628,147.02,146.99,6.8037]
[1746488831330,11.47035122,147.01,146.98,6.8044]
[1746488831528,4.66705122,147.01,146.96,0.2]
[1746488831831,4.66705122,147.01,146.99,6.8039]
[1746488836337,4.66705122,147.02,147.0,6.8037]
[1746488837935,4.66705122,147.02,146.96,0.2]
[1746488838436,11.47005122,147.02,146.98,6.8042]
[1746488838931,6.8033,147.01,146.98,6.8042]
[1746488842239,6.8038,147.0,146.98,6.8042]
[1746488844040,6.8038,147.0,146.97,6.8049]
[1746488844238,11.47085122,147.0,146.97,6.8049]
[1746488844442,6.8044,146.99,146.96,7.0055]
[1746488847039,6.8044,146.99,146.97,6.8051]
[1746488847537,6.8044,146.99,146.96,0.2]
[1746488848043,6.8048,146.98,146.96,0.2]
[1746488849847,6.8051,146.97,146.96,0.2]
[1746488862058,4.66705122,146.98,146.93,2.0]
[1746488862262,23.76,146.99,146.93,2.0]
[1746488862263,4.66705122,146.94,146.93,2.0]
[1746488863756,11.47355122,146.94,146.93,2.0]
[1746488863953,4.66705122,146.94,146.93,2.0]
[1746488864357,4.66705122,146.96,146.93,2.0]
[1746488865254,4.66705122,146.96,146.94,6.8062]
[1746488869255,11.47265122,146.96,146.93,8.8067]
[1746488869657,4.66705122,146.96,146.93,8.8067]
[1746488870155,4.66705122,146.94,146.93,2.0]
[1746488871965,11.47355122,146.94,146.93,2.0]
[1746488878470,6.8065,146.94,146.93,2.0]
[1746488878664,11.47355122,146.94,146.93,2.0]
[1746488880274,4.66705122,146.94,146.93,2.0]
[1746488880572,4.66705122,146.96,146.93,2.0]
[1746488881873,4.66705122,146.96,146.94,6.8063]
[1746488888281,4.66705122,146.96,146.93,2.0]
[1746488889785,4.66705122,146.96,146.94,6.8063]
[1746488890386,11.47265122,146.96,146.94,6.8063]
[1746488891186,4.66705122,146.96,146.94,6.8063]
[1746488895788,4.66705122,146.96,146.93,2.0]
[1746488896090,4.66705122,146.91,146.9,1.0]
[1746488897590,6.8083,146.9,146.89,0.1]
[1746488897985,4.66705122,146.91,146.89,0.1]
[1746488899192,6.8083,146.9,146.89,0.1]
[1746488901793,11.47515122,146.91,146.89,0.1]
[1746488901992,4.66705122,146.91,146.89,0.1]
[1746488905698,11.47495122,146.91,146.89,0.1]
[1746488907201,4.66705122,146.91,146.89,6.9088]
[1746488908402,11.47495122,146.91,146.89,0.1]
[1746488910301,11.47495122,146.91,146.89,6.9087]
[1746488910701,11.47495122,146.91,146.89,0.1]
[1746488911703,11.47495122,146.91,146.89,6.9087]
[1746488911998,4.66705122,146.91,146.85,1.0]
[1746488912202,4.66705122,146.86,146.85,1.0]
[1746488912399,4.66705122,146.88,146.85,1.0]
[1746488913202,4.66705122,146.88,146.86,6.8099]
[1746488916505,4.66705122,146.9,146.85,1.0]
[1746488916702,28.60705122,146.93,146.86,4.66705122]
[1746488916901,28.60705122,146.93,146.88,4.66705122]
[1746488917102,4.66705122,146.93,146.89,2.1225]
[1746488917303,4.66705122,146.93,146.89,4.08]
[1746488917707,6.8063,146.95,146.89,4.08]
[1746488918308,6.8063,146.95,146.91,6.8074]
[1746488918510,6.8063,146.95,146.89,4.08]
[1746488918808,6.8063,146.95,146.92,6.8074]
[1746488919009,30.7457,146.96,146.89,4.08]
[1746488919202,23.94,146.96,146.89,4.08]
[1746488919811,6.806,146.95,146.92,6.8071]
[1746488920312,23.94,146.96,146.94,6.8064]
[1746488920700,7.29920409,146.97,146.94,6.8064]
[1746488921114,14.10450409,146.97,146.94,6.8064]
[1746488927317,7.29920409,146.97,146.94,6.8064]
[1746488927923,14.10430409,146.97,146.94,6.8064]
[1746488932421,1.9501,147.03,146.89,4.08]
[1746488932625,31.21920409,147.02,146.9,23.92]
[1746488933124,6.8035,147.01,146.98,6.8045]
[1746488933819,6.8039,147.0,146.97,6.8049]
[1746488937327,6.8039,147.0,146.94,23.92]
[1746488937328,31.21920409,147.02,146.96,6.8054]
[1746488937829,31.21920409,147.02,146.94,23.92]
[1746488938028,6.8048,146.98,146.95,6.8058]
[1746488938432,6.8055,146.97,146.93,6.8067]
[1746488938730,23.94,146.98,146.93,6.8067]
[1746488939520,14.10510409,146.96,146.93,6.8067]
[1746488939725,7.29920409,146.96,146.92,6.8073]
[1746488940229,6.8063,146.95,146.92,6.8073]
[1746488940635,7.29920409,146.96,146.91,6.8077]
[1746488941641,6.8065,146.94,146.91,6.8077]
[1746488948644,23.96,146.94,146.89,4.18]
[1746488948944,23.96,146.94,146.89,2.2225]
[1746488949139,6.8077,146.92,146.89,9.0312]
[1746488949340,7.29920409,146.93,146.89,0.1]
[1746488951141,9.43330409,146.93,146.89,0.1]
[1746488951747,6.8083,146.9,146.89,0.1]
[1746488952044,30.7683,146.9,146.89,0.1]
[1746488952737,6.8097,146.88,146.85,3.0482]
[1746488953945,6.8089,146.89,146.85,9.8586]
[1746488955044,38.06770409,146.9,146.86,6.8101]
[1746488958348,6.8089,146.89,146.86,6.8101]
[1746488958747,38.06770409,146.9,146.86,6.8101]
[1746488959845,30.7685,146.9,146.87,6.8096]
[1746488960044,23.96,146.9,146.85,3.0482]
[1746488960346,23.96,146.9,146.87,6.8094]
[1746488960647,30.7686,146.9,146.87,6.8094]
[1746488961252,6.8088,146.89,146.86,6.81]
[1746488965454,30.7685,146.9,146.86,6.81]
[1746488965642,23.96,146.9,146.85,9.8588]
[1746488966054,6.8089,146.89,146.85,9.8588]
[1746488968753,30.7685,146.9,146.86,6.8102]
[1746488969057,23.96,146.9,146.85,3.0482]
[1746488970852,6.8088,146.89,146.85,9.8587]
[1746488971154,23.96,146.9,146.85,3.0482]
[1746488971655,30.7687,146.9,146.86,6.8102]
[1746488973554,23.96,146.9,146.87,6.8095]
[1746488974457,23.96,146.9,146.86,6.81]
[1746488975356,30.7686,146.9,146.86,6.81]
[1746488975558,30.7686,146.9,146.87,6.8097]
[1746488981558,23.96,146.9,146.88,6.8092]
[1746488985665,30.7684,146.9,146.87,6.8096]
[1746488986565,30.7684,146.9,146.85,1.0]
[1746488987366,30.7684,146.9,146.87,6.8096]
[1746488987763,4.67505307,146.89,146.87,6.8096]
[1746488988766,4.67481731,146.89,146.87,6.8096]
[1746488989466,4.67481731,146.89,146.85,1.0]
[1746488990466,6.8095,146.88,146.85,7.8103]
[1746488991667,11.48381731,146.89,146.86,6.8102]
[1746488998473,11.48381731,146.89,146.87,6.8097]
[1746488999369,11.48381731,146.89,146.86,6.91]
[1746489000577,6.8093,146.88,146.86,0.1]
[1746489000778,4.67481731,146.87,146.86,0.1]
[1746489000971,4.67620069,146.87,146.86,0.1]
[1746489002676,4.67620069,146.87,146.86,6.9102]
[1746489012585,4.67620069,146.87,146.86,0.1]
[1746489015086,4.67620069,146.87,146.86,6.9102]
[1746489015284,6.8093,146.88,146.86,6.9102]
[1746489015688,6.8093,146.88,146.86,0.1]
[1746489018187,6.8093,146.88,146.86,6.9101]
[1746489019588,11.48520069,146.89,146.86,6.9101]
[1746489019793,23.96,146.9,146.86,0.1]
[1746489020191,35.44310974,146.9,146.86,0.1]
[1746489020490,35.44310974,146.9,146.86,6.9099]
[1746489021288,35.44310974,146.9,146.87,6.8096]
[1746489022190,4.67450974,146.88,146.86,6.9101]
[1746489022393,6.8089,146.89,146.86,6.9101]
[1746489022693,4.67450974,146.88,146.86,6.9101]
[1746489028691,4.67450974,146.88,146.87,6.8097]
[1746489030596,4.67450974,146.88,146.86,6.91]
[1746489030799,4.67450974,146.88,146.86,0.1]
[1746489031098,11.48395612,146.89,146.86,0.1]
[1746489031299,4.67505612,146.89,146.86,0.1]
[1746489031594,4.67477413,146.89,146.86,0.1]
[1746489031794,4.67477413,146.89,146.88,6.8093]
[1746489032999,4.67477413,146.89,146.87,6.8095]
[1746489042207,4.67477413,146.89,146.88,6.8093]
[1746489042502,4.67477413,146.89,146.86,0.1]
[1746489043408,4.67477413,146.89,146.87,6.8094]
[1746489043703,0.27111,146.97,146.88,28.81322421]
[1746489043900,0.27111,146.97,146.92,4.67322421]
[1746489044097,0.27111,146.97,146.95,6.8056]
[1746489044505,0.27111,146.97,146.96,6.8055]
[1746489047606,4.93962888,146.97,146.96,6.8055]
[1746489049814,4.93962888,146.97,146.95,6.8059]
[1746489050316,4.93962888,146.97,146.93,24.14]
[1746489050516,4.66851888,146.95,146.93,24.14]
[1746489050715,4.66851888,146.95,146.9,24.14]
[1746489051212,4.66851888,146.95,146.92,6.807]
[1746489051820,6.8058,146.96,146.92,6.807]
[1746489053326,7.07631,146.97,146.93,6.8068]
[1746489053515,0.27111,146.97,146.93,6.8068]
[1746489054821,6.8058,146.96,146.93,6.8068]
[1746489059929,6.8058,146.96,146.92,6.8072]
[1746489062830,6.8058,146.96,146.93,6.8069]
[1746489063627,6.8058,146.96,146.92,6.8073]
[1746489065735,6.8063,146.95,146.92,6.8073]
[1746489065936,7.2987034,146.98,146.91,6.9077]
[1746489066234,7.30083649,146.96,146.91,6.9077]
[1746489066437,6.8067,146.94,146.91,0.1]
[1746489068334,6.8067,146.94,146.91,6.9079]
[1746489069037,6.807,146.93,146.91,0.1]
[1746489070241,6.8067,146.94,146.91,6.9079]
[1746489070537,6.8067,146.94,146.91,0.1]
[1746489070735,31.36093559,146.96,146.91,0.1]
[1746489072036,6.8074,146.92,146.91,0.1]
[1746489073241,6.8074,146.92,146.88,8.7572]
[1746489073242,14.60187118,146.93,146.86,0.1]
[1746489073439,7.30093559,146.89,146.86,0.1]
[1746489074638,6.8096,146.88,146.86,0.1]
[1746489076237,24.06,146.92,146.86,0.1]
[1746489076442,24.06,146.92,146.87,6.8094]
[1746489077238,30.8677,146.92,146.87,6.8094]
[1746489078243,30.8677,146.92,146.88,6.8091]
[1746489079645,6.8079,146.91,146.88,6.8091]
[1746489082645,6.8084,146.9,146.86,4.1398]
[1746489083148,6.8084,146.9,146.86,10.9497]
[1746489083948,6.8088,146.89,146.86,4.1398]
[1746489084249,6.8088,146.89,146.86,2.053]
[1746489085248,6.8088,146.89,146.86,8.8631]
[1746489085844,6.8085,146.9,146.86,8.8631]
[1746489086045,7.30093559,146.91,146.86,8.8631]
[1746489087249,6.809,146.89,146.86,2.053]
[1746489088244,6.809,146.89,146.86,8.8631]
[1746489088847,6.809,146.89,146.86,6.9101]
[1746489091146,6.8097,146.87,146.86,0.1]
[1746489091452,7.30093559,146.91,146.86,0.1]
[1746489092352,6.809,146.89,146.86,6.9099]
[1746489093255,6.8097,146.87,146.86,0.1]
[1746489093755,6.8095,146.88,146.86,0.1]
[1746489093942,7.30093559,146.91,146.86,0.1]
[1746489095654,6.8097,146.87,146.86,0.1]
[1746489095855,7.30093559,146.91,146.86,0.1]
[1746489096156,6.8097,146.87,146.86,0.1]
[1746489108665,6.8097,146.87,146.81,24.76]
[1746489108666,7.31029749,146.87,146.81,24.76]
[1746489108855,7.31029749,146.87,146.78,563.96]
[1746489109058,6.8105,146.86,146.82,6.8117]
[1746489110265,6.8105,146.86,146.83,6.8116]
[1746489111065,6.8107,146.85,146.82,6.8119]
[1746489111260,7.31029749,146.87,146.82,6.8119]
[1746489111465,7.31029749,146.87,146.78,563.96]
[1746489111760,6.8104,146.86,146.78,563.96]
[1746489112860,6.8104,146.86,146.83,6.8114]
[1746489113565,24.76,146.88,146.82,24.76]
[1746489113864,6.8098,146.87,146.84,6.8111]
[1746489114256,24.76,146.88,146.82,24.76]
[1746489114461,6.8106,146.86,146.82,31.5717]
[1746489115169,6.8104,146.86,146.82,31.5717]
[1746489115465,6.8104,146.86,146.83,6.8115]
[1746489115865,6.8099,146.87,146.83,6.8115]
[1746489117566,6.8103,146.86,146.83,6.8115]
[1746489118964,6.8107,146.85,146.82,31.5718]
[1746489119468,6.8104,146.86,146.83,6.8116]
[1746489120163,6.8104,146.86,146.82,24.76]
[1746489120371,6.8108,146.85,146.82,31.5719]
[1746489120562,32.07029749,146.88,146.82,24.76]
[1746489121272,32.07029749,146.88,146.83,6.8113]
[1746489121273,6.8105,146.86,146.83,6.8113]
[1746489122667,6.8105,146.86,146.82,31.5719]
[1746489122869,6.8108,146.85,146.82,31.5719]
[1746489123268,32.07029749,146.88,146.79,27.1471]
[1746489123968,7.31029749,146.85,146.77,4.1217]
[1746489124158,25.06,146.84,146.77,4.1217]
[1746489124566,6.8119,146.83,146.79,6.8131]
[1746489124766,25.06,146.84,146.77,4.1217]
[1746489124964,25.06,146.84,146.82,0.1]
[1746489125165,7.31029749,146.85,146.82,0.1]
[1746489125869,6.8112,146.84,146.82,0.1]
[1746489126268,7.31029749,146.85,146.82,0.1]
[1746489126472,6.8103,146.86,146.82,0.1]
[1746489126671,25.06,146.87,146.82,0.1]
[1746489126874,7.31029749,146.88,146.82,0.1]
[1746489127169,7.31029749,146.88,146.82,4.2659]
[1746489127666,25.06,146.9,146.82,0.1]
[1746489127667,7.31029749,146.85,146.82,0.1]
[1746489128173,6.8116,146.83,146.82,0.1]
[1746489136468,6.8129,146.81,146.77,31.8741]
[1746489136876,6.8129,146.81,146.78,6.8139]
[1746489138377,7.31029749,146.82,146.77,25.06]
[1746489138977,6.8132,146.8,146.77,31.8743]
[1746489140580,6.8128,146.81,146.78,6.8137]
[1746489140771,7.31029749,146.82,146.77,25.06]
[1746489141879,6.8127,146.81,146.77,31.874]
[1746489142774,6.8127,146.81,146.78,6.8138]
[1746489144176,6.8121,146.82,146.79,6.8134]
[1746489145678,6.8128,146.81,146.78,6.8139]
[1746489149278,160.56385767,147.03,146.77,25.06]
[1746489149279,0.29124,146.91,146.77,25.06]
[1746489149480,7.31029749,146.86,146.77,25.06]
[1746489149781,7.31029749,146.86,146.8,6.8127]
[1746489150173,7.31029749,146.86,146.77,25.06]
[1746489150474,6.811,146.85,146.81,6.8121]
[1746489151180,6.8112,146.84,146.81,6.8121]
[1746489154783,6.8118,146.83,146.79,6.8131]
[1746489155386,6.8118,146.83,146.8,6.8129]
[1746489165596,32.37029749,146.86,146.79,6.8131]
[1746489165797,4.67870425,146.83,146.77,29.73870425]
[1746489166299,11.49050425,146.83,146.8,6.8129]
[1746489168399,6.8122,146.82,146.8,6.8129]
[1746489168600,4.67870425,146.83,146.77,29.73870425]
[1746489168799,4.67870425,146.81,146.77,25.06]
[1746489169099,11.49120425,146.81,146.78,6.8136]
[1746489169601,11.49120425,146.81,146.77,25.06]
[1746489169899,11.49120425,146.81,146.78,6.8138]
[1746489170100,11.49120425,146.81,146.77,25.06]
[1746489170702,4.67870425,146.81,146.79,6.8132]
[1746489170900,25.06,146.86,146.77,25.06]
[1746489171101,4.67870425,146.83,146.77,25.06]
[1746489171403,4.67870425,146.81,146.77,25.06]
[1746489171898,6.8132,146.8,146.77,31.8741]
[1746489173200,6.8132,146.8,146.78,6.8139]
[1746489175406,11.49140425,146.81,146.78,6.8139]
[1746489176705,11.49140425,146.81,146.79,6.8134]
[1746489176904,4.67870425,146.81,146.79,6.8134]
[1746489177805,11.49120425,146.81,146.79,6.8134]
[1746489179402,11.49120425,146.81,146.78,6.8137]
[1746489180102,6.813,146.8,146.78,6.8137]
[1746489180709,6.813,146.8,146.77,31.8742]
[1746489182712,11.49220425,146.79,146.77,25.06]
[1746489182910,11.49220425,146.79,146.76,111.45340707]
[1746489186906,11.49310425,146.77,146.76,1.0]
[1746489187318,4.67870425,146.77,146.76,1.0]
[1746489187504,6.8136,146.79,146.76,1.0]
[1746489187704,11.49230425,146.79,146.76,1.1]
[1746489188311,11.49230425,146.79,146.76,7.9145]
[1746489189406,4.67870425,146.79,146.77,6.8144]
[1746489189607,4.67870425,146.81,146.76,1.1]
[1746489190105,6.813,146.8,146.78,6.8138]
[1746489191710,6.813,146.8,146.77,6.8143]
[1746489192707,11.49150425,146.81,146.76,1.1]
[1746489193311,11.49150425,146.81,146.79,6.8133]
[1746489195606,11.49150425,146.81,146.78,6.8137]
[1746489196912,11.49150425,146.81,146.79,6.8134]
[1746489198008,4.67870425,146.81,146.79,6.8134]
[1746489201115,4.67870425,146.81,146.8,6.813]
[1746489201717,4.67870425,146.81,146.79,6.8133]
[1746489209019,11.49120425,146.81,146.79,6.8133]
[1746489209820,11.49120425,146.81,146.78,6.8138]
[1746489210621,6.813,146.8,146.78,6.8138]
[1746489210918,4.67870425,146.81,146.78,6.8138]
[1746489211219,11.49140425,146.81,146.78,6.8138]
[1746489214322,6.813,146.8,146.78,6.8138]
[1746489215622,11.49140425,146.81,146.78,6.8138]
[1746489219225,11.49140425,146.81,146.79,6.8133]
[1746489219420,11.49140425,146.81,146.76,25.62]
[1746489219721,11.49140425,146.81,146.78,6.8136]
[1746489222420,6.813,146.8,146.78,6.8136]
[1746489222623,4.67870425,146.81,146.78,6.8136]
[1746489223022,11.49160425,146.81,146.78,6.8136]
[1746489224422,6.813,146.8,146.78,6.8136]
[1746489225324,11.49140425,146.81,146.78,6.8136]
[1746489228923,11.49140425,146.81,146.76,25.62]
[1746489228924,4.67870425,146.79,146.76,1.1]
[1746489229131,4.67870425,146.77,146.76,1.1]
[1746489230025,11.49310425,146.77,146.76,1.1]
[1746489242940,6.8157,146.74,146.71,6.8169]
[1746489243139,11.49440425,146.74,146.71,6.8169]
[1746489243339,4.67870425,146.74,146.7,30.3701]
[1746489243543,11.49450425,146.74,146.71,6.817]
[1746489244241,4.67870425,146.74,146.71,6.817]
[1746489245251,4.67870425,146.74,146.72,6.8164]
[1746489245650,11.49450425,146.74,146.7,30.3701]
[1746489245951,11.49450425,146.74,146.7,24.32]
[1746489246352,4.67870425,146.74,146.72,6.8167]
[1746489249357,11.49460425,146.74,146.71,6.8169]
[1746489249558,4.67870425,146.74,146.7,24.32]
[1746489250262,6.8162,146.73,146.7,31.1373]
[1746489250452,6.8162,146.73,146.71,0.1]
[1746489252654,11.49470425,146.74,146.71,6.9171]
[1746489255259,11.49470425,146.74,146.71,0.1]
[1746489255660,6.8164,146.73,146.71,0.1]
[1746489266268,6.8164,146.73,146.71,6.917]
[1746489269472,6.8164,146.73,146.71,0.1]
[1746489272874,4.67870425,146.72,146.71,0.1]
[1746489275567,11.49540425,146.72,146.71,0.1]
[1746489284576,4.67870425,146.72,146.71,0.1]
[1746489285682,11.49540425,146.72,146.71,0.1]
[1746489289583,6.8164,146.73,146.71,0.1]
[1746489289884,4.67870425,146.72,146.71,0.1]
[1746489290579,11.49540425,146.72,146.71,0.1]
[1746489305101,4.67870425,146.72,146.71,0.1]
[1746489306599,4.67870425,146.72,146.71,6.9171]
[1746489306806,4.67870425,146.73,146.71,6.9171]
[1746489307597,26.0928,146.79,146.72,24.08]
[1746489307803,4.67870425,146.78,146.72,24.08]
[1746489308006,11.49290425,146.78,146.72,30.138]
[1746489308194,11.49290425,146.78,146.75,6.815]
[1746489309001,4.67870425,146.78,146.72,30.138]
[1746489309306,4.67870425,146.78,146.73,4.67870425]
[1746489310410,4.67870425,146.78,146.76,6.8145]
[1746489310604,4.67870425,146.78,146.73,4.67870425]
[1746489312410,4.67870425,146.78,146.76,6.8144]
[1746489312611,4.67870425,146.78,146.73,4.67870425]
[1746489313310,4.67870425,146.78,146.76,6.8147]
[1746489313711,4.67870425,146.78,146.73,4.67870425]
[1746489314911,4.67870425,146.78,146.76,6.8146]
[1746489315110,4.67870425,146.78,146.73,4.67870425]
[1746489315613,11.49280425,146.78,146.75,6.8152]
[1746489316213,6.8137,146.79,146.75,11.49390425]
[1746489316406,4.67870425,146.77,146.72,34.81670425]
[1746489316603,4.67870425,146.77,146.72,30.138]
[1746489317917,11.49330425,146.77,146.74,6.8157]
[1746489318414,6.8146,146.77,146.74,6.8157]
[1746489318712,4.67870425,146.77,146.74,6.8157]
[1746489321918,4.67870425,146.77,146.75,6.8152]
[1746489323116,24.06,146.82,146.76,6.8145]
[1746489323320,4.67870425,146.81,146.75,4.67870425]
[1746489323524,24.06,146.82,146.76,24.06]
[1746489323717,11.49080425,146.82,146.79,6.8131]
[1746489326623,4.67870425,146.82,146.79,6.8131]
[1746489327224,4.67870425,146.82,146.8,6.8129]
[1746489333726,4.67870425,146.82,146.79,6.8132]
[1746489340338,6.8113,146.84,146.77,4.67870425]
[1746489340530,4.67870425,146.83,146.77,4.67870425]
[1746489340934,11.49060425,146.83,146.8,6.8129]
[1746489342434,4.67870425,146.83,146.8,6.8129]
[1746489344936,11.49030425,146.83,146.8,6.8129]
[1746489349241,4.67870425,146.83,146.81,6.8124]
[1746489349633,4.67870425,146.83,146.76,24.06]
[1746489350134,11.49030425,146.83,146.8,6.8126]
[1746489350743,4.67870425,146.83,146.81,6.8124]
[1746489352042,4.67870425,146.83,146.76,24.06]
[1746489352235,11.49040425,146.83,146.8,6.8127]
[1746489352943,4.67870425,146.83,146.81,6.8125]
[1746489354043,4.67870425,146.83,146.76,24.06]
[1746489354544,11.49060425,146.83,146.8,6.8127]
[1746489355846,11.49060425,146.83,146.81,6.8124]
[1746489356144,4.67870425,146.83,146.81,6.8124]
[1746489356844,4.67870425,146.83,146.82,6.812]
[1746489360842,28.73870425,146.85,146.83,6.8114]
[1746489361044,4.67870425,146.85,146.83,6.8114]
[1746489362443,4.67870425,146.85,146.84,6.8111]
[1746489362750,4.67870425,146.87,146.81,4.67870425]
[1746489363048,4.67870425,146.87,146.85,6.8106]
[1746489363841,11.48850425,146.87,146.84,6.8109]
[1746489364243,11.48850425,146.87,146.83,6.8114]
[1746489364447,6.8102,146.86,146.83,6.8114]
[1746489367955,6.8102,146.86,146.84,6.8111]
[1746489372659,11.48860425,146.87,146.84,6.8111]
[1746489375556,4.67870425,146.85,146.77,131.20711707]
[1746489375760,4.67870425,146.82,146.77,131.20711707]
[1746489375961,11.49090425,146.82,146.78,6.8136]
[1746489377064,6.8126,146.81,146.78,6.8136]
[1746489380663,6.813,146.8,146.77,138.02131707]
[1746489380868,4.67870425,146.82,146.77,138.02131707]
[1746489381160,6.8128,146.81,146.77,138.02131707]
[1746489384866,6.8128,146.81,146.78,6.8139]
[1746489389169,6.8128,146.81,146.77,138.02121707]
[1746489389569,6.8128,146.81,146.77,131.20711707]
[1746489390670,6.8128,146.81,146.78,6.8139]
[1746489395766,6.8128,146.81,146.77,135.94541707]
[1746489396473,6.8128,146.81,146.78,6.8138]
[1746489397069,11.49180425,146.8,146.77,127.18281707]
[1746489398475,4.67870425,146.8,146.77,127.18281707]
[1746489398772,4.67870425,146.8,146.77,133.99691707]
[1746489400473,4.67870425,146.8,146.78,6.8137]
[1746489402075,4.67870425,146.8,146.77,133.99691707]
[1746489403977,11.49170425,146.8,146.77,132.03221707]
[1746489406281,4.67870425,146.8,146.77,132.03221707]
[1746489410782,11.49180425,146.8,146.77,132.03221707]
[1746489411382,4.67870425,146.8,146.77,125.21811707]
[1746489411588,4.67870425,146.78,146.76,0.1]
[1746489412585,11.49280425,146.78,146.76,0.1]
[1746489416793,6.8144,146.77,146.76,0.1]
[1746489421490,4.67870425,146.74,146.71,0.1]
[1746489422489,6.8167,146.72,146.71,0.1]
[1746489422689,11.49540425,146.72,146.71,0.1]
[1746489423395,4.67870425,146.72,146.71,0.1]
[1746489424300,11.49540425,146.72,146.71,0.1]
[1746489441006,4.67870425,146.72,146.71,0.1]
[1746489441810,4.67870425,146.74,146.71,0.1]
[1746489442109,4.67870425,146.76,146.71,24.16]
[1746489442312,11.49380425,146.76,146.73,6.816]
[1746489443616,6.8153,146.75,146.72,6.8165]
[1746489444412,11.49370425,146.76,146.73,6.8162]